Cogmind - Beta 9.1 @@@ ROGUE MODE // 2019.11.03 @ 16:17:10 Player: Suslik Result: Self-destructed Performance ------------- Evolutions (5) 2500 Regions Visited (24) 4800 Robots Destroyed (350) 1750 Value Destroyed (12813) 12813 Prototype IDs (23) 460 Alien Tech Used (0) 0 Bonus (2969) 2969 TOTAL SCORE: 25292 Bonus ------- High Alert Combat Kills 1488 Follower Combat Kills 1029 Entered Garrisons 600 Used RIF Installer 1500 Met Data Miner 300 Friendly Fire -1948 Cogmind --------- Core Integrity 472/1000 Matter 77/300 Energy 72/380 System Corruption 7% Temperature Cool (0) Location -5/Upper Caves Parts ------- Power (2) Reinforced Fission Core Micro Fission Core Propulsion (3) Heavy Treads Utility (10) Advanced Cooling System Large Storage Unit High-capacity Storage Unit High-capacity Storage Unit Improved Terrain Scan Processor Improved Medium Armor Plating Weapon (2) Gamma Bomb Array Scythe Inventory (26) Armored Huge Wheel Energy Well (500) Matter Compressor (250) Experimental Sensor Array Hardened Medium Armor Plating Hardened Medium Armor Plating Hardened Medium Armor Plating Hardened Medium Armor Plating Damper Plating Advanced Thermal Shield Relay Coupler [Grunt] (24) Relay Coupler [Grunt] (24) Mini Assault Cannon Enhanced Gauss Cannon Hypervelocity Mass Driver Advanced EMP Blaster Missile Launcher Advanced Remote Datajack Peak State ------------ Power Antimatter Reactor Antimatter Reactor Propulsion Armored Medium Treads Biometal Medium Treads Biometal Medium Treads Utility Large Storage Unit High-capacity Storage Unit High-capacity Storage Unit Long-range Terrain Scanner Improved Terrain Scan Processor Heavy Armor Plating Heavy Reactive Plating Relay Coupler [NC] Weapon HERF Cannon HERF Cannon Inventory Heavy Treads Heavy Treads Armored Huge Wheel Improved Cooling System Energy Well Matter Compressor Advanced Sensor Array Improved Signal Interpreter Damper Plating Damper Plating Advanced Thermal Shield HERF Cannon Hypervelocity Mass Driver Hypervelocity Mass Driver Advanced EMP Blaster Gamma Bomb Array Missile Launcher Advanced Remote Datajack Scythe [Rating: 91] Favorites ----------- Power Antimatter Reactor Engine Heavy Ion Engine Power Core Micro Fission Core Reactor Antimatter Reactor Propulsion Light Treads Treads Light Treads Leg Aluminum Leg Wheel Armored Huge Wheel Utility High-capacity Storage Unit Device Long-range Terrain Scanner Storage High-capacity Storage Unit Processor Improved Terrain Scan Processor Hackware Relay Coupler [NC] Protection Hardened Medium Armor Plating Weapon Light EM Pulse Cannon Energy Gun Heavy EM Pulse Gun Energy Cannon Light EM Pulse Cannon Ballistic Gun Light Assault Rifle Ballistic Cannon Advanced Assault Cannon Launcher Shock Bomb Launcher Special Weapon Remote Datajack Impact Weapon Hammer Slashing Weapon Chainsword Special Melee Weapon Datajack Build | -11 -10 -10 -9 -9 -9 -8 -8 -8 -8 -8 -7 -7 -7 -7 -7 -7 -6 -6 -6 -6 -5 -5 -5 -5 ------- Run | Scr Mat Min Mat Min Exi Min Mat Gar Mat Gar Fac Was Fac Low Low Dat Pro Fac Gar Fac Fac Was Fac Upp Slots Evolved 10 | . . . 2 . . . 2 . . . 2 . . . . . . 2 . . 2 . . . Power 1 | . . . . . . . . . . . . . . . . . . . . . 1 . . . Propulsion 1 | . . . . . . . . . . . . . . . . . . . . . 1 . . . Utility 8 | . . . 2 . . . 2 . . . 2 . . . . . . 2 . . . . . . Weapon . | . . . . . . . . . . . . . . . . . . . . . . . . . Parts Attached 465 | 2 12 1 26 12 . 4 20 18 33 7 65 6 9 9 29 . 6 32 39 34 8 8 84 1 Power 25 | . 1 . 2 . . . 1 1 2 1 2 1 . 1 . . . 1 2 1 1 2 6 . Engine 15 | . 1 . 2 . . . 1 1 2 1 2 . . 1 . . . . 1 1 . . 2 . Core 4 | . . . . . . . . . . . . . . . . . . 1 . . . . 3 . Reactor 6 | . . . . . . . . . . . . 1 . . . . . . 1 . 1 2 1 . Propulsion 41 | 2 2 . 4 3 . . 4 . 4 . 4 . . 1 3 . . . 4 4 1 . 5 . Treads 37 | 2 . . 4 3 . . 3 . 4 . 4 . . 1 2 . . . 4 4 1 . 5 . Leg . | . . . . . . . . . . . . . . . . . . . . . . . . . Wheel 4 | . 2 . . . . . 1 . . . . . . . 1 . . . . . . . . . Hover . | . . . . . . . . . . . . . . . . . . . . . . . . . Flight . | . . . . . . . . . . . . . . . . . . . . . . . . . Utility 144 | . 5 1 8 1 . 1 5 2 12 1 20 2 1 1 10 . . 13 17 14 2 2 26 . Device 52 | . . . . . . . 1 . 4 . 6 . 1 1 3 . . 4 9 9 2 1 11 . Storage 16 | . 2 1 3 . . . 2 . 2 . 1 . . . . . . 2 . 2 . . 1 . Processor 2 | . . . . . . . . . 1 . . . . . . . . . . . . . 1 . Hackware 16 | . . . . . . . . . 2 . 5 2 . . 1 . . . . 1 . 1 4 . Protection 58 | . 3 . 5 1 . 1 2 2 3 1 8 . . . 6 . . 7 8 2 . . 9 . Artifact . | . . . . . . . . . . . . . . . . . . . . . . . . . Weapon 255 | . 4 . 12 8 . 3 10 15 15 5 39 3 8 6 16 . 6 18 16 15 4 4 47 1 Energy Gun 10 | . . . 1 1 . 1 3 4 . . . . . . . . . . . . . . . . Energy Cannon 77 | . 2 . 8 3 . 1 1 . 2 . 9 . 3 3 8 . 3 8 9 4 1 . 12 . Ballistic Gun 5 | . 1 . 1 . . . . . . . 1 1 . . . . . 1 . . . . . . Ballistic Cannon 59 | . . . . . . . 3 4 8 3 7 . 2 2 2 . 2 5 2 2 2 . 15 . Launcher 38 | . 1 . 2 3 . . 3 6 1 2 5 . . 1 1 . . 1 3 1 . 1 6 1 Special Weapon 13 | . . . . . . . . . . . . . . . 3 . . . 1 1 . 3 5 . Impact Weapon 1 | . . . . 1 . . . . . . . . . . . . . . . . . . . . Slashing Weapon 42 | . . . . . . . . 1 3 . 10 1 3 . 2 . 1 3 1 7 1 . 9 . Piercing Weapon . | . . . . . . . . . . . . . . . . . . . . . . . . . Special Melee Weapon 10 | . . . . . . 1 . . 1 . 7 1 . . . . . . . . . . . . Unidentified Prototypes 12 | . . . 5 . . . 3 . . . . . . . . . . 2 . . 1 . 1 . Parts Lost 84 | . 1 . 4 1 . 2 5 3 3 2 8 . . 1 3 . . 3 12 5 . . 29 2 Power 10 | . 1 . . . . . . . . 1 1 . . 1 . . . . . 1 . . 5 . Propulsion 15 | . . . . . . . 2 . 1 . 3 . . . 1 . . . 1 1 . . 5 1 Utility 33 | . . . 2 . . 1 . 2 . . 1 . . . 1 . . 3 8 2 . . 12 1 Weapon 26 | . . . 2 1 . 1 3 1 2 1 3 . . . 1 . . . 3 1 . . 7 . Highest Loss Streak 10 | . 1 . 2 1 . 1 2 2 2 1 2 . . 1 2 . . 2 5 3 . . 10 9 Average Slot Usage (%) 95 | . 97 100 98 100 100 100 95 89 99 99 95 100 100 99 97 92 92 88 89 88 88 88 90 64 Engine 6 | . 13 14 11 11 11 11 9 9 8 9 6 1 . 5 7 7 7 2 2 1 5 . . . Reactor 2 | . . . . . . . . . . . . 5 7 1 . . . . 1 4 5 10 7 . Treads 13 | . 16 . 16 22 22 22 12 . 17 18 14 15 15 15 11 . . . 11 12 17 17 14 5 Wheel 2 | . 11 28 5 . . . 2 9 . . . . . . 1 7 7 6 . . . . . . Device 5 | . . . . . . . 6 7 7 1 5 5 6 7 8 7 7 5 12 10 5 5 7 5 Storage 27 | . 16 28 31 33 33 33 35 36 36 36 30 30 30 30 30 30 30 26 23 20 17 17 16 17 Processor 4 | . . . . . . . . . 8 9 7 7 7 7 7 7 7 6 6 6 5 5 9 5 Hackware 2 | . . . . . . . . . . . 1 8 15 15 7 . . . . . . 4 2 . Protection 10 | . 9 . 11 11 11 11 10 9 1 7 11 7 . . 5 15 15 23 14 17 16 11 11 5 Energy Cannon 8 | . 5 28 21 17 22 17 3 . 1 . 5 . 7 12 12 15 14 6 11 7 . . 2 . Ballistic Cannon 3 | . . . . . . . 6 12 14 16 4 . . 1 . . . 2 . 2 6 . 4 . Slashing Weapon 1 | . . . . . . . . 1 1 . 3 . 6 . . . . 3 . 2 3 5 2 5 Naked Turns . | . . . . . . . . . . . . . . . . . . . . . . . . . Heaviest Build 190 | 12 61 77 99 99 99 101 126 127 132 125 144 125 133 128 137 137 137 174 189 178 190 175 187 . Greatest Support 97 | 40 40 24 40 43 43 43 43 28 56 50 50 48 48 48 57 28 28 28 60 70 97 97 97 . Greatest Overweight (x) 6 | . 3 3 4 2 2 2 5 4 4 2 6 2 2 2 4 4 4 6 6 6 1 1 2 . Average Overweight (x) 2 | . . 2 2 2 2 2 2 3 2 2 2 2 2 2 2 4 4 5 2 2 1 1 1 . Largest Inventory Capacity 34 | 6 18 20 26 26 26 26 32 32 32 32 32 32 32 32 32 32 32 34 34 26 26 26 26 26 Average Capacity 28 | 6 11 19 25 26 26 26 31 32 32 32 32 32 32 32 32 32 32 33 30 26 26 26 25 26 Most Carried 34 | 6 17 18 26 26 26 26 32 32 32 32 32 32 32 32 32 30 32 34 34 26 25 26 26 21 Average Carried 27 | 5 9 17 24 25 26 25 30 31 31 30 31 31 31 31 31 30 30 32 29 24 24 25 24 21 Final Capacity 34 | 6 18 20 26 26 26 26 32 32 32 32 32 32 32 32 32 32 32 34 26 26 26 26 26 26 Final Carried 34 | 4 17 18 26 26 26 25 32 31 32 32 32 32 32 32 30 30 32 34 26 26 25 26 22 21 Class Distribution -------------------- 79% | Hauler-Mutant 11% | Bothacker-Mutant 4% | Mutant 3% | Hauler-Assassin Dominant Class ---------------- Mutant | -10/Materials Hauler-Mutant | -10/Mines Hauler-Mutant | -9/Materials Hauler-Mutant | -9/Mines Hauler-Mutant | -9/Exiles Hauler-Mutant | -8/Mines Hauler-Mutant | -8/Materials Hauler-Mutant | -8/Garrison Hauler-Mutant | -8/Materials Hauler-Mutant | -8/Garrison Bothacker-Mutant | -7/Factory Hauler-Mutant | -7/Waste Hauler-Mutant | -7/Factory Hauler-Mutant | -7/Lower Caves Hauler-Mutant | -7/Lower Caves Hauler-Mutant | -7/Data Miner Hauler-Mutant | -6/Proximity Caves Hauler-Mutant | -6/Factory Hauler-Mutant | -6/Garrison Hauler-Mutant | -6/Factory Hauler-Mutant | -5/Factory Hauler-Mutant | -5/Waste Hauler-Mutant | -5/Factory Hauler-Mutant | -5/Upper Caves Resources | -11 -10 -10 -9 -9 -9 -8 -8 -8 -8 -8 -7 -7 -7 -7 -7 -7 -6 -6 -6 -6 -5 -5 -5 -5 ----------- Run | Scr Mat Min Mat Min Exi Min Mat Gar Mat Gar Fac Was Fac Low Low Dat Pro Fac Gar Fac Fac Was Fac Upp Matter Collected 9001 | 220 257 10 256 165 . 209 550 330 1080 328 1053 126 10 285 289 . 194 545 553 661 97 213 1570 . Remotely . | . . . . . . . . . . . . . . . . . . . . . . . . . Salvage Created 15936 | . 401 349 1387 498 . 407 1134 557 1223 446 1130 . 66 101 324 . 142 530 1334 1036 97 1096 3678 . Parts 742 | . 23 7 69 35 . 22 50 44 81 22 67 . 4 4 17 . 3 30 50 33 . 18 163 . Haulers Intercepted 16 | . 1 . 4 . . . 2 . 3 . 2 . . . . . . . . . 1 . 3 . Recyclers Shooed 10 | . 1 . . . . 1 . . . . 2 . . . . . . 1 . 2 . . 3 . Parts Field Recycled . | . . . . . . . . . . . . . . . . . . . . . . . . . Retrieved Matter . | . . . . . . . . . . . . . . . . . . . . . . . . . Parts Self-Destructed 28 | . . . . . . . . . . . . . . 5 2 . 21 . . . . . . . Prevented 22 | . . . . . . . . . . . . . . . 17 . 5 . . . . . . . Kills | -11 -10 -10 -9 -9 -9 -8 -8 -8 -8 -8 -7 -7 -7 -7 -7 -7 -6 -6 -6 -6 -5 -5 -5 -5 ------- Run | Scr Mat Min Mat Min Exi Min Mat Gar Mat Gar Fac Was Fac Low Low Dat Pro Fac Gar Fac Fac Was Fac Upp Combat Hostiles Destroyed 277 | . 9 4 27 10 . 11 22 23 26 13 26 . . 5 5 . 2 11 19 12 . 4 48 . Melee 10 | . . . . . . . . . 1 . . . . . . . . . 1 4 . 4 . . Guns 14 | . 7 . . . . . 3 3 . . 1 . . . . . . . . . . . . . Cannons 131 | . . 3 20 . . 10 9 2 22 8 12 . . 3 1 . 2 8 8 2 . . 21 . AOE 83 | . 2 . 6 9 . . 7 17 3 5 12 . . 2 1 . . 2 6 . . . 11 . Classes Destroyed 19 | . 5 . 3 2 . 2 1 . . . 2 . 1 . 1 . . . . . . 1 1 . Worker 17 | . 1 2 . 1 . 1 2 . 2 . 2 . . . . . . 1 . . . . 5 . Builder 6 | . . . . 1 . . . . . . 1 . . . . . . 1 . . . . 3 . Tunneler 4 | . . . . . . 3 . . . . 1 . . . . . . . . . . . . . Hauler 16 | . 1 . 4 . . . 2 . 3 . 2 . . . . . . . . . 1 . 3 . Recycler 15 | . 1 1 2 1 . . 2 . 1 . . . . . . . . . . 3 . . 4 . Mechanic 2 | . . . 1 . . . 1 . . . . . . . . . . . . . . . . . Operator 1 | . . . . . . . . . . . 1 . . . . . . . . . . . . . Drone 1 | . . . . . . . . . . . . . . . . . . . . . . . 1 . Watcher 6 | . . . 1 . . . 1 . 1 . . . . . . . . . 2 . . . 1 . Swarmer 84 | . 3 . 10 4 . 6 8 17 3 3 7 . . 2 . . . 4 . 3 . . 14 . Grunt 104 | . 6 4 12 5 . 4 7 3 13 5 14 . . . 2 . . 2 10 4 . . 13 . Brawler 9 | . . . . 1 . . 1 . . 2 . . . . . . . . 2 1 . . 2 . Duelist 8 | . . . . . . 1 . . . 1 1 . . 2 1 . 1 . . . . . 1 . Sentry 43 | . . . 5 . . . 4 3 9 2 2 . . . . . 1 3 5 3 . . 6 . Demolisher 1 | . . . . . . . . . . . . . . . . . . . 1 . . . . . Hunter 11 | . . . . . . . 2 . 1 . 1 . . . . . . . . . . . 7 . Programmer 13 | . . . . . . . . . . . 2 . . 1 1 . . 2 . 1 . . 6 . Behemoth 2 | . . . . . . . . . . . . . . . 1 . . . 1 . . . . . Compactor 4 | . . . . . . . . . . . . . . . . . . . . . . 4 . . Martyr 2 | . . . . . . . . . . . . . 2 . . . . . . . . . . . Best Kill Streak 10 | . 3 2 6 4 . 4 8 5 7 3 9 . . 3 2 . 1 7 9 4 1 1 10 . Combat Bots Only 9 | . 3 2 5 4 . 3 6 5 5 3 8 . . 3 2 . 1 5 7 2 . 1 9 . Max Kills in Single Turn 5 | . 1 1 3 3 . 2 2 3 5 2 5 . 1 2 1 . 1 2 2 1 1 1 3 . Gunslinging . | . . . . . . . . . . . . . . . . . . . . . . . . . Exploded 4 | . 1 . 3 3 . . 2 3 3 2 4 . . 2 1 . . 1 2 . . . 2 . Melee 1 | . . . . . . . . . 1 . . . . . . . . . 1 1 . 1 . . Uniques/NPCs Destroyed 1 | . . . . 1 . . . . . . . . . . . . . . . . . . . . YI-UF0 (-9/Mines) Combat | -11 -10 -10 -9 -9 -9 -8 -8 -8 -8 -8 -7 -7 -7 -7 -7 -7 -6 -6 -6 -6 -5 -5 -5 -5 -------- Run | Scr Mat Min Mat Min Exi Min Mat Gar Mat Gar Fac Was Fac Low Low Dat Pro Fac Gar Fac Fac Was Fac Upp Damage Taken 22555 | . 631 160 702 283 . 286 886 747 1405 377 2696 37 18 344 892 . 268 1356 3803 1307 . . 6166 191 Core 2145 | . 61 36 93 23 . 18 93 56 258 13 191 . . 30 125 . 29 202 260 129 . . 528 . Absorbed by Shields 112 | . . . . . . . . . . . . . . . . . . . 112 . . . . . Core Remaining (%) 54 | 100 . 61 . . . 66 . . . 23 . . . . . . 46 . . 30 . . . . Volleys Fired 693 | . 33 12 54 14 . 23 57 38 59 43 51 2 . 10 27 . 9 37 57 31 1 6 125 4 Largest 2 | . 2 2 2 2 . 2 2 2 2 2 2 1 . 2 2 . 2 2 2 2 2 1 2 1 Hottest 195 | . 112 112 112 112 . 112 101 96 126 96 126 23 . 96 138 . 159 138 195 176 132 30 176 80 Shots Fired 1179 | . 61 24 104 21 . 46 100 47 119 55 86 2 . 18 41 . 19 66 92 60 2 6 206 4 Gun 108 | . 50 . . 3 . 3 32 14 . . 4 2 . . . . . . . . . . . . Cannon 913 | . 6 24 102 11 . 43 54 6 117 42 78 . . 16 29 . 19 64 78 55 2 . 167 . Launcher 125 | . 5 . 2 7 . . 14 27 2 13 4 . . 2 5 . . 2 13 1 . . 24 4 Special 33 | . . . . . . . . . . . . . . . 7 . . . 1 4 . 6 15 . Kinetic 471 | . 50 . . . . . 43 6 107 42 59 2 . 16 4 . 2 36 4 16 2 . 82 . Thermal 55 | . . . . . . . . . . . . . . . . . 1 . 54 . . . . . Explosive 21 | . 5 . 2 . . . 2 6 . . 1 . . 2 . . . . . . . . 3 . Electromagnetic 599 | . 6 24 102 21 . 46 55 35 12 13 26 . . . 30 . 16 30 33 40 . . 106 4 Robot Hit Streak 23 | . 13 7 22 16 . 7 17 9 11 11 12 11 . 8 9 . 3 9 23 7 8 14 18 11 Robot Miss Streak 12 | . 3 1 4 1 . 3 12 6 4 2 7 . . 1 2 . 4 3 2 2 . . 3 3 Penetration Max 1 | . . . . . . . . . . . . . . . . . . . . . . . 1 . Secondary Targets 2 | . 2 . . . . . . . . . . . . . . . . . . . . . . . Max Gunslinging Chain 1 | . 1 . . . . . . . . . . . . . . . . . . . . . . . Shots Hit Robots 915 | . 46 17 68 16 . 28 62 14 83 31 88 3 3 11 30 . 10 44 76 61 2 79 140 3 Core Hits 535 | . 17 8 39 14 . 17 58 27 49 19 45 1 2 7 9 . 6 21 45 16 1 8 122 4 Critical Hits 71 | . . . 1 . . . . . 2 1 1 . . 2 . . . 2 5 7 2 6 42 . Critical Kills 22 | . . . . . . . . . . . . . . 1 . . . . 1 3 1 1 15 . Critical Parts Destroyed 40 | . . . 1 . . . . . 2 1 1 . . 1 . . . 2 4 4 1 2 21 . Melee Attacks 349 | . . . . 23 . 1 . 1 17 . 63 1 25 . 4 . 1 29 7 43 2 73 59 . Impact 23 | . . . . 23 . . . . . . . . . . . . . . . . . . . . Slashing 291 | . . . . . . . . 1 12 . 34 1 25 . 4 . 1 29 7 43 2 73 59 . Piercing . | . . . . . . . . . . . . . . . . . . . . . . . . . Sneak Attacks 109 | . . . . . . 1 . . 4 . 23 1 3 . . . . 1 . . . 73 3 . Combat Hostiles 90 | . . . . . . 1 . . . . 16 . . . . . . . . . . 73 . . Follow-up Attacks . | . . . . . . . . . . . . . . . . . . . . . . . . . Damage Inflicted 34433 | . 752 430 2018 704 . 765 2111 1025 2863 1152 2950 154 327 466 684 . 393 1706 3469 1984 30 3324 6966 160 Guns 1012 | . 431 . . 44 . . 318 94 . . 91 34 . . . . . . . . . . . . Cannons 17138 | . 91 416 1545 179 . 648 709 114 2244 674 1504 . . 339 453 . 274 1346 2078 1256 30 . 3238 . Explosions 10466 | . 205 . 405 414 . . 1084 817 527 478 1160 . . 127 231 . 119 169 1178 65 . . 3327 160 Melee 5293 | . . . . . . . . . 35 . 148 120 327 . . . . 153 213 635 . 3324 338 . Ramming 524 | . 25 14 68 67 . 117 . . 57 . 47 . . . . . . 38 . 28 . . 63 . Kinetic 7590 | . 431 . . . . . 542 114 2086 674 1043 34 . 339 70 . . 693 60 261 30 . 1213 . Thermal 3336 | . 39 . 164 72 . . 58 5 355 49 373 . . . . . 119 38 2006 . . . 58 . Explosive 2592 | . 166 . 241 . . . 320 165 . . 520 . . 127 . . . . . . . . 1053 . Electromagnetic 15098 | . 91 416 1545 565 . 648 1191 741 330 429 819 . . . 614 . 274 784 1190 1060 . . 4241 160 Impact . | . . . . . . . . . . . . . . . . . . . . . . . . . Slashing 5293 | . . . . . . . . . 35 . 148 120 327 . . . . 153 213 635 . 3324 338 . Piercing . | . . . . . . . . . . . . . . . . . . . . . . . . . Highest Corruption 7 | . . . . . . . 2 5 7 7 1 1 1 1 6 6 7 4 6 6 . . 6 7 Average Corruption 3 | . . . . . . . 1 3 6 7 1 1 1 1 2 6 6 3 5 6 . . 1 6 Corruption Purged . | . . . . . . . . . . . . . . . . . . . . . . . . . Effects 271 | . . . . . . . . 16 67 35 5 1 5 2 11 4 16 12 35 39 . . 23 . Message Errors 64 | . . . . . . . . 2 14 6 3 . 2 2 2 3 3 4 6 10 . . 7 . Matter Fused 53 | . . . . . . . . 5 12 7 . . . . 6 . 3 3 7 9 . . 1 . Heat Flow Errors 20 | . . . . . . . . 1 3 3 . . . . 1 . 2 2 2 4 . . 2 . Energy Discharges 34 | . . . . . . . . 1 8 4 1 1 2 . 1 1 3 1 4 3 . . 4 . Parts Rejected 7 | . . . . . . . . . 2 . . . . . 1 . . 1 1 2 . . . . Data Loss (minor) 30 | . . . . . . . . 6 9 3 1 . 1 . . . 1 1 3 3 . . 2 . Data Loss (major) 7 | . . . . . . . . . 4 1 . . . . . . 1 . 1 . . . . . Misfires 13 | . . . . . . . . . 4 4 . . . . . . 1 . 1 3 . . . . Targeting Errors 37 | . . . . . . . . 1 10 5 . . . . . . 2 . 7 5 . . 7 . Weapon Failures 6 | . . . . . . . . . 1 2 . . . . . . . . 3 . . . . . Overload Shots 3 | . . . . . . . . . . . . . . . . . . . 3 . . . . . Overflow Damage 1007 | . 3 . 23 . . . 14 1 105 13 137 . 101 . . . 9 155 34 95 . . 317 . Projectiles 294 | . . . 23 . . . 3 . 69 10 9 . . . . . 9 71 8 23 . . 69 . Explosions 331 | . 3 . . . . . 11 1 29 3 128 . . . . . . . 26 . . . 130 . Melee 382 | . . . . . . . . . 7 . . . 101 . . . . 84 . 72 . . 118 . Knockbacks 78 | . . . . 2 . 2 10 . 25 5 6 . . 5 1 . . 6 1 4 . . 11 . Impact 6 | . . . . 2 . 2 . . 1 . . . . . . . . 1 . . . . . . Kinetic 67 | . . . . . . . 10 . 20 5 6 . . 5 1 . . 5 1 4 . . 10 . Secondary 5 | . . . . . . . . . 4 . . . . . . . . . . . . . 1 . Self-Inflicted Damage 1530 | . 6 7 24 83 . . 135 128 140 32 303 . . . 12 . 20 57 249 84 . . 212 38 Shots 68 | . . . 1 5 . . 6 11 4 2 5 . . . 3 . 1 2 12 2 . . 10 4 Rammed 41 | . 2 1 5 3 . 8 . . 5 . 7 . . . . . . 3 . 2 . . 5 . Targets Rammed 46 | . 3 1 5 4 . 11 . . 5 . 7 . . . . . . 3 . 2 . . 5 . Kicked . | . . . . . . . . . . . . . . . . . . . . . . . . . Crushed 5 | . 1 . . 1 . 3 . . . . . . . . . . . . . . . . . . Highest Temperature 580 | . 51 240 321 135 . 322 252 117 453 274 336 . . 140 237 . 254 449 435 580 312 . 450 19 Average Temperature 118 | . 18 108 91 43 . 107 65 31 90 68 99 . . 80 77 . 108 219 179 122 174 . 126 10 Received Heat Transfer 5274 | . 204 81 255 60 . 99 243 117 558 153 636 . 9 . 132 . 57 222 1068 432 . . 894 54 Effects 61 | . . . . . . 2 2 . 1 1 1 . . . . . . 17 5 16 1 . 15 . Shutdowns 13 | . . . . . . . . . . . . . . . . . . 4 1 1 . . 7 . Energy Bleed 10 | . . . . . . 1 . . . 1 . . . . . . . 3 1 1 . . 3 . Interference 19 | . . . . . . 1 2 . . . . . . . . . . 7 3 6 . . . . Matter Decay 3 | . . . . . . . . . . . . . . . . . . 1 . . 1 . 1 . Short Circuit 1 | . . . . . . . . . . . . . . . . . . . . 1 . . . . Damage (minor) 4 | . . . . . . . . . 1 . 1 . . . . . . 2 . . . . . . Damage (major) 11 | . . . . . . . . . . . . . . . . . . . . 7 . . 4 . Siege Activations . | . . . . . . . . . . . . . . . . . . . . . . . . . Robots Corrupted 43 | . . 1 2 1 . 1 4 1 . . 1 . . . 3 . . 1 4 7 . . 17 . Combat Hostiles 39 | . . 1 1 1 . 1 3 1 . . 1 . . . 3 . . 1 4 6 . . 16 . Parts Fried 88 | . . 3 6 1 . 3 12 2 3 1 2 . . . 8 . . 2 4 9 . . 32 . Impact Corruptions 3 | . . . . . . 1 . . 1 . . . . . . . . . . . . . 1 . Robots Melted . | . . . . . . . . . . . . . . . . . . . . . . . . . Combat Hostiles . | . . . . . . . . . . . . . . . . . . . . . . . . . Parts Melted 2 | . . . . . . . . . . . . . . . . . . . 2 . . . . . Heat Transferred 3780 | . 50 . 200 50 . . 50 50 400 50 350 . . . . . 150 50 2330 . . . 50 . Parts Sabotaged . | . . . . . . . . . . . . . . . . . . . . . . . . . Parts Stolen . | . . . . . . . . . . . . . . . . . . . . . . . . . Parts Stripped . | . . . . . . . . . . . . . . . . . . . . . . . . . Power Chain Reactions 30 | . 1 . 3 3 . . 3 1 2 2 5 . . . . . 1 2 4 . . . 3 . Missiles Intercepted . | . . . . . . . . . . . . . . . . . . . . . . . . . Alert | -11 -10 -10 -9 -9 -9 -8 -8 -8 -8 -8 -7 -7 -7 -7 -7 -7 -6 -6 -6 -6 -5 -5 -5 -5 ------- Run | Scr Mat Min Mat Min Exi Min Mat Gar Mat Gar Fac Was Fac Low Low Dat Pro Fac Gar Fac Fac Was Fac Upp Peak Influence 1417 | . 192 100 278 190 . 175 441 1022 759 453 382 158 114 . . . . 301 569 420 97 673 1417 . Average Influence 288 | . 78 46 195 92 . 31 195 739 229 325 234 98 27 . . . . 167 440 206 90 438 734 . Maximum Alert Level 4 | . . . 1 . . . 2 3 3 2 1 . . . . . . 1 2 2 . 2 4 . Low Security (%) 47 | . . . . . . . . . . . . . . . . . . . . . . . . . Level 1 26 | . . . . . . . . . . . . . . . . . . . . . . . . . Level 2 13 | . . . . . . . . . . . . . . . . . . . . . . . . . Level 3 11 | . . . . . . . . . . . . . . . . . . . . . . . . . Level 4 . | . . . . . . . . . . . . . . . . . . . . . . . . . Level 5 . | . . . . . . . . . . . . . . . . . . . . . . . . . High Security . | . . . . . . . . . . . . . . . . . . . . . . . . . Max Security . | . . . . . . . . . . . . . . . . . . . . . . . . . Squads Dispatched 43 | . 1 . 3 . . . 3 . 7 . 9 . 4 . . . . 3 . 3 . . 10 . Investigation 11 | . 1 . 2 . . . 2 . 2 . 2 . . . . . . 1 . . . . 1 . Extermination 6 | . . . . . . . . . . . 1 . 1 . . . . 1 . 1 . . 2 . Reinforcement 17 | . . . 1 . . . 1 . 5 . 4 . . . . . . 1 . 2 . . 3 . Assault 3 | . . . . . . . . . . . . . . . . . . . . . . . 3 . Garrison 6 | . . . . . . . . . . . 2 . 3 . . . . . . . . . 1 . Intercept . | . . . . . . . . . . . . . . . . . . . . . . . . . Construction Impeded 1 | . . . . . . . . . . . 1 . . . . . . . . . . . . . Haulers Reinforced 2 | . . . . . . . . . . . . . . . . . . . . . . . 2 . Alert ID Control Effect 6 | . . . . . . . . . . . 3 . . . . . . . . . . . 3 . Stealth | -11 -10 -10 -9 -9 -9 -8 -8 -8 -8 -8 -7 -7 -7 -7 -7 -7 -6 -6 -6 -6 -5 -5 -5 -5 --------- Run | Scr Mat Min Mat Min Exi Min Mat Gar Mat Gar Fac Was Fac Low Low Dat Pro Fac Gar Fac Fac Was Fac Upp Distress Signals 27 | . 2 . 3 . . 1 4 . 2 . 2 . 1 . . . . 2 1 2 . . 7 . Communications Jammed . | . . . . . . . . . . . . . . . . . . . . . . . . . Distress Signals . | . . . . . . . . . . . . . . . . . . . . . . . . . Times Spotted 479 | . 14 6 49 10 . 15 31 22 46 13 51 6 7 4 8 . 11 22 27 19 . 6 109 3 Peak Tracking Total 10 | . 4 2 5 4 . 3 4 5 5 5 7 3 3 2 3 . 3 6 10 4 . 1 8 3 Tactical Retreats 58 | . 1 2 4 . . 2 6 2 8 3 1 . . . . . . 5 3 3 . . 18 . Traps | -11 -10 -10 -9 -9 -9 -8 -8 -8 -8 -8 -7 -7 -7 -7 -7 -7 -6 -6 -6 -6 -5 -5 -5 -5 ------- Run | Scr Mat Min Mat Min Exi Min Mat Gar Mat Gar Fac Was Fac Low Low Dat Pro Fac Gar Fac Fac Was Fac Upp Traps Triggered 33 | . . . 1 . . . 1 4 2 6 2 . 1 . . . . 3 4 2 1 . 6 . Indirectly 6 | . . . . . . . 1 . . 3 . . . . . . . . . . . . 2 . Trap Hack Attempts . | . . . . . . . . . . . . . . . . . . . . . . . . . Triggered . | . . . . . . . . . . . . . . . . . . . . . . . . . Disarmed . | . . . . . . . . . . . . . . . . . . . . . . . . . Reprogrammed . | . . . . . . . . . . . . . . . . . . . . . . . . . Reused . | . . . . . . . . . . . . . . . . . . . . . . . . . Traps Extracted . | . . . . . . . . . . . . . . . . . . . . . . . . . Installed . | . . . . . . . . . . . . . . . . . . . . . . . . . Triggered 12 | . . . 1 . . . . . . . . . . . 2 . . . . 8 . . 1 . Machines | -11 -10 -10 -9 -9 -9 -8 -8 -8 -8 -8 -7 -7 -7 -7 -7 -7 -6 -6 -6 -6 -5 -5 -5 -5 ---------- Run | Scr Mat Min Mat Min Exi Min Mat Gar Mat Gar Fac Was Fac Low Low Dat Pro Fac Gar Fac Fac Was Fac Upp Machines Disabled 47 | . 1 . 1 2 . . 1 3 1 3 5 . . . . . . 2 1 3 . . 24 . Max in Single Turn 8 | . 1 . 1 2 . . 1 1 1 1 4 . . . . . . 2 1 2 . . 8 . Garrison Access 8 | . . . . . . . . . . . 4 . . . . . . . . 1 . . 3 . Garrison Relay 5 | . . . . . . . . 3 . 1 . . . . . . . . 1 . . . . . Machines Sabotaged . | . . . . . . . . . . . . . . . . . . . . . . . . . Garrisons Compromised . | . . . . . . . . . . . . . . . . . . . . . . . . . Overloaded Fab Kills . | . . . . . . . . . . . . . . . . . . . . . . . . . Fab Network Shutdowns . | . . . . . . . . . . . . . . . . . . . . . . . . . Hacking | -11 -10 -10 -9 -9 -9 -8 -8 -8 -8 -8 -7 -7 -7 -7 -7 -7 -6 -6 -6 -6 -5 -5 -5 -5 --------- Run | Scr Mat Min Mat Min Exi Min Mat Gar Mat Gar Fac Was Fac Low Low Dat Pro Fac Gar Fac Fac Was Fac Upp Machines Accessed 50 | . 2 . 5 . . . 3 . 8 . 7 . 3 . . 4 . 4 . 2 . . 12 . Terminals 16 | . . . 3 . . . . . 3 . 2 . 1 . . . . 2 . . . . 5 . Fabricators 4 | . . . . . . . . . . . . . 1 . . . . . . 1 . . 2 . Repair Stations 7 | . 1 . 1 . . . 2 . 2 . . . . . . . . . . . . . 1 . Recycling Units 6 | . 1 . . . . . . . 2 . 1 . . . . . . 1 . . . . 1 . Scanalyzers 1 | . . . 1 . . . . . . . . . . . . . . . . . . . . . Garrison Access 12 | . . . . . . . 1 . 1 . 4 . 1 . . . . 1 . 1 . . 3 . Total Hacks 104 | . 5 . 14 . . . 7 . 14 . 9 . 4 . . 26 . 5 . 2 . . 18 . Successful 74 | . 5 . 8 . . . 4 . 9 . 5 . 3 . . 26 . 3 . 2 . . 9 . Failed 30 | . . . 6 . . . 3 . 5 . 4 . 1 . . . . 2 . . . . 9 . Catastrophic 6 | . . . 1 . . . . . . . 1 . . . . . . . . . . . 4 . Database Lockouts . | . . . . . . . . . . . . . . . . . . . . . . . . . Manual 37 | . 1 . 9 . . . . . 9 . 5 . 2 . . . . 4 . . . . 7 . Terminals 30 | . . . 9 . . . . . 7 . 3 . 2 . . . . 3 . . . . 6 . Fabricators 6 | . . . . . . . . . . . . . 1 . . . . . . 1 . . 4 . Repair Stations 20 | . 4 . 3 . . . 6 . 4 . . . . . . . . . . . . . 3 . Recycling Units 7 | . 1 . . . . . . . 2 . 2 . . . . . . 1 . . . . 1 . Scanalyzers 2 | . . . 2 . . . . . . . . . . . . . . . . . . . . . Garrison Access 13 | . . . . . . . 1 . 1 . 4 . 1 . . . . 1 . 1 . . 4 . Terminal Hacks 32 | . . . 2 . . . . . 2 . . . 1 . . 26 . 1 . . . . . . Record 11 | . . . . . . . . . . . . . . . . 11 . . . . . . . . Part Schematic 9 | . . . . . . . . . . . . . . . . 9 . . . . . . . . Robot Schematic 3 | . . . . . . . . . . . . . . . . 3 . . . . . . . . Prototype ID Bank 3 | . . . . . . . . . . . . . . . . 3 . . . . . . . . Branch Access Points 3 | . . . 1 . . . . . . . . . 1 . . . . 1 . . . . . . Unreport Threat 2 | . . . . . . . . . 2 . . . . . . . . . . . . . . . Zone Layout 1 | . . . 1 . . . . . . . . . . . . . . . . . . . . . Fabricator Hacks 4 | . . . . . . . . . . . . . 1 . . . . . . 1 . . 2 . Load Schematic 1 | . . . . . . . . . . . . . . . . . . . . . . . 1 . Build 3 | . . . . . . . . . . . . . 1 . . . . . . 1 . . 1 . Repair Station Hacks 15 | . 4 . 2 . . . 3 . 4 . . . . . . . . . . . . . 2 . Scan Component 8 | . 2 . 1 . . . 2 . 2 . . . . . . . . . . . . . 1 . Repair 7 | . 2 . 1 . . . 1 . 2 . . . . . . . . . . . . . 1 . Recycling Unit Hacks . | . . . . . . . . . . . . . . . . . . . . . . . . . Scanalyzer 2 | . . . 2 . . . . . . . . . . . . . . . . . . . . . Insert Component 1 | . . . 1 . . . . . . . . . . . . . . . . . . . . . Analyze 1 | . . . 1 . . . . . . . . . . . . . . . . . . . . . Garrison Access Hacks 13 | . . . . . . . 1 . 1 . 4 . 1 . . . . 1 . 1 . . 4 . Unlock Access 4 | . . . . . . . 1 . 1 . . . 1 . . . . 1 . . . . . . Seal Access 8 | . . . . . . . . . . . 4 . . . . . . . . 1 . . 3 . Coupler Status 1 | . . . . . . . . . . . . . . . . . . . . . . . 1 . Unauthorized Hacks 19 | . 2 . 4 . . . . . 4 . 5 . . . . . . 2 . . . . 2 . Terminals 2 | . . . 2 . . . . . . . . . . . . . . . . . . . . . Track 1 | . . . 1 . . . . . . . . . . . . . . . . . . . . . Operators 1 | . . . 1 . . . . . . . . . . . . . . . . . . . . . Fabricators . | . . . . . . . . . . . . . . . . . . . . . . . . . Repair Stations . | . . . . . . . . . . . . . . . . . . . . . . . . . Recycling Units 6 | . 1 . . . . . . . 2 . 1 . . . . . . 1 . . . . 1 . Tunnel 6 | . 1 . . . . . . . 2 . 1 . . . . . . 1 . . . . 1 . Scanalyzers . | . . . . . . . . . . . . . . . . . . . . . . . . . Garrison Access . | . . . . . . . . . . . . . . . . . . . . . . . . . Data Cores Recovered . | . . . . . . . . . . . . . . . . . . . . . . . . . Used . | . . . . . . . . . . . . . . . . . . . . . . . . . Hacking Detections 23 | . 1 . 3 . . . 2 . 4 . 3 . . . . . . 1 . 1 . . 8 . Full Trace Events 1 | . . . . . . . 1 . . . . . . . . . . . . . . . . . Feedback Events . | . . . . . . . . . . . . . . . . . . . . . . . . . Feedback Blocked . | . . . . . . . . . . . . . . . . . . . . . . . . . Robot Schematics Acquired 3 | . . . . . . . . . . . . . . . . 3 . . . . . . . . Robots Built 3 | . . . . . . . . . . . . . 3 . . . . . . . . . . . Matter 186 | . . . . . . . . . . . . . 186 . . . . . . . . . . . Time 99 | . . . . . . . . . . . . . 99 . . . . . . . . . . . Total Robot Build Rating 6 | . . . . . . . . . . . . . 6 . . . . . . . . . . . Part Schematics Acquired 10 | . . . 1 . . . . . . . . . . . . 9 . . . . . . . . Parts Built 3 | . . . . . . . . . . . . . . . . . . . . 2 . . 1 . Matter 541 | . . . . . . . . . . . . . . . . . . . . 256 . . 285 . Time 280 | . . . . . . . . . . . . . . . . . . . . 128 . . 152 . Total Part Build Rating 21 | . . . . . . . . . . . . . . . . . . . . 16 . . 5 . Parts Repaired 7 | . 2 . 1 . . . 1 . 2 . . . . . . . . . . . . . 1 . Time 218 | . 52 . 26 . . . 38 . 76 . . . . . . . . . . . . . 26 . Parts Recycled . | . . . . . . . . . . . . . . . . . . . . . . . . . Recycled Matter . | . . . . . . . . . . . . . . . . . . . . . . . . . Retrieved Matter . | . . . . . . . . . . . . . . . . . . . . . . . . . Retrieved Components . | . . . . . . . . . . . . . . . . . . . . . . . . . Parts Scanalyzed 1 | . . . 1 . . . . . . . . . . . . . . . . . . . . . Part Schematics Acquired 1 | . . . 1 . . . . . . . . . . . . . . . . . . . . . Parts Damaged . | . . . . . . . . . . . . . . . . . . . . . . . . . Bothacking | -11 -10 -10 -9 -9 -9 -8 -8 -8 -8 -8 -7 -7 -7 -7 -7 -7 -6 -6 -6 -6 -5 -5 -5 -5 ------------ Run | Scr Mat Min Mat Min Exi Min Mat Gar Mat Gar Fac Was Fac Low Low Dat Pro Fac Gar Fac Fac Was Fac Upp Used RIF Installer 3 | . . . . . . . . 1 . 1 . . . . . . . . 1 . . . . . Alert ID Control 1 | . . . . . . . . . . 1 . . . . . . . . . . . . . . Program Shield 1 | . . . . . . . . . . . . . . . . . . . 1 . . . . . Robots Hacked 23 | . . . . . . . . . 1 . 5 . . . 3 . . . . 1 . 6 7 . Non-combat 6 | . . . . . . . . . 1 . 1 . . . 1 . . . . 1 . . 2 . Combat 17 | . . . . . . . . . . . 4 . . . 2 . . . . . . 6 5 . Robot Hacks Applied 32 | . . . . . . . . . 4 . 9 . . . 3 . . . . 3 . 6 7 . parse_system 1 | . . . . . . . . . . . . . . . 1 . . . . . . . . . purge_threat 8 | . . . . . . . . . 4 . 2 . . . . . . . . 2 . . . . reprogram_traps 3 | . . . . . . . . . . . 2 . . . . . . . . 1 . . . . clear_recycling 1 | . . . . . . . . . . . 1 . . . . . . . . . . . . . ignore_targets 6 | . . . . . . . . . . . . . . . . . . . . . . 6 . . amplify_resonance 1 | . . . . . . . . . . . . . . . . . . . . . . . 1 . go_dormant 1 | . . . . . . . . . . . . . . . . . . . . . . . 1 . streamctrl_low 1 | . . . . . . . . . . . . . . . . . . . . . . . 1 . formatsys_low 1 | . . . . . . . . . . . . . . . . . . . . . . . 1 . formatsys_high 9 | . . . . . . . . . . . 4 . . . 2 . . . . . . . 3 . Relay Couplers Released 27 | . . . . . . . . 11 . 4 . . . . . . . . 4 . . . 8 . Machine Destruction 19 | . . . . . . . . 11 . 4 . . . . . . . . 4 . . . . . Programmers 8 | . . . . . . . . . . . . . . . . . . . . . . . 8 . Attached 15 | . . . . . . . . . 2 . 5 1 . . 1 . . . . 1 . 1 4 . Robots Rewired 4 | . . . . . . 1 . . . . 1 . . . 1 . . . 1 . . . . . Allies Hacked . | . . . . . . . . . . . . . . . . . . . . . . . . . Hacks Repelled . | . . . . . . . . . . . . . . . . . . . . . . . . . Allies | -11 -10 -10 -9 -9 -9 -8 -8 -8 -8 -8 -7 -7 -7 -7 -7 -7 -6 -6 -6 -6 -5 -5 -5 -5 -------- Run | Scr Mat Min Mat Min Exi Min Mat Gar Mat Gar Fac Was Fac Low Low Dat Pro Fac Gar Fac Fac Was Fac Upp Total Allies 38 | . . . . . . 1 . . . . 5 19 3 . 3 . 1 . 1 . . . 5 . Largest Group 19 | . . . . . . 1 . . . . 2 19 12 3 2 1 2 1 1 . . . 2 . Highest-Rated Group 477 | . . . . . . 16 . . . . 53 477 335 68 32 20 114 94 26 . . . 82 . Highest-Rated Ally 94 | . . . . . . 16 . . . . 32 35 33 32 32 20 94 94 26 . . . 41 . Total Orders 3 | . . . . . . . . . . . . . . . . . . . . . . . 3 . AID 1 | . . . . . . . . . . . . . . . . . . . . . . . 1 . EXPLORE 2 | . . . . . . . . . . . . . . . . . . . . . . . 2 . Ally Attacks 328 | . . . . . . 1 . . . . 25 197 61 . 2 . 23 1 4 . . . 14 . Total Damage 7872 | . . . . . . . . . . . 624 4925 1038 . 31 . 689 . 57 . . . 508 . Kills 41 | . . . . . . . . . . . 9 11 9 . . . 9 . . . . . 3 . Allies Corrupted . | . . . . . . . . . . . . . . . . . . . . . . . . . Allies Melted . | . . . . . . . . . . . . . . . . . . . . . . . . . Intel | -11 -10 -10 -9 -9 -9 -8 -8 -8 -8 -8 -7 -7 -7 -7 -7 -7 -6 -6 -6 -6 -5 -5 -5 -5 ------- Run | Scr Mat Min Mat Min Exi Min Mat Gar Mat Gar Fac Was Fac Low Low Dat Pro Fac Gar Fac Fac Was Fac Upp Robot Analysis Total . | . . . . . . . . . . . . . . . . . . . . . . . . . Derelict Logs Recovered 4 | . . 2 . 1 . . . . . . . . . . . . 1 . . . . . . . Drone Launches 5 | . . . . . . . . . . . . . . . . . . . . . . . 5 . Drone Recoveries . | . . . . . . . . . . . . . . . . . . . . . . . . . Exploration | -11 -10 -10 -9 -9 -9 -8 -8 -8 -8 -8 -7 -7 -7 -7 -7 -7 -6 -6 -6 -6 -5 -5 -5 -5 ------------- Run | Scr Mat Min Mat Min Exi Min Mat Gar Mat Gar Fac Was Fac Low Low Dat Pro Fac Gar Fac Fac Was Fac Upp Turns Passed 26459 | 9 912 846 1804 1255 470 1601 1002 905 1848 937 2499 617 1022 677 1102 126 662 1159 1216 1467 229 676 3409 9 Spaces Moved 11919 | 4 513 647 863 541 236 745 402 522 739 390 994 288 444 309 511 87 402 563 449 502 111 259 1398 . Core . | . . . . . . . . . . . . . . . . . . . . . . . . . Treads 8748 | 3 269 . 577 541 236 745 259 . 707 390 994 288 444 309 328 . . . 388 502 111 259 1398 . Legs 1 | 1 . . . . . . . . . . . . . . . . . . . . . . . . Wheels 3170 | . 244 647 286 . . . 143 522 32 . . . . . 183 87 402 563 61 . . . . . Hover . | . . . . . . . . . . . . . . . . . . . . . . . . . Flight . | . . . . . . . . . . . . . . . . . . . . . . . . . Fastest Speed 100 | 120 100 110 120 200 200 200 140 130 140 192 185 205 205 205 140 140 140 150 150 185 173 173 165 . Average Speed 178 | 150 137 117 175 200 200 200 181 139 194 192 203 205 205 205 181 140 140 150 202 205 173 173 175 . Slowest Speed 290 | 160 180 120 200 200 200 200 260 140 240 192 270 205 205 205 205 140 140 160 225 290 173 173 185 . Overloaded Moves . | . . . . . . . . . . . . . . . . . . . . . . . . . Propulsion Burnouts . | . . . . . . . . . . . . . . . . . . . . . . . . . Robots Hopped . | . . . . . . . . . . . . . . . . . . . . . . . . . Cave-ins Triggered 2 | . 1 . . . . . . . . . . . . . . . . . 1 . . . . . Exploration Rate (%) 53 | 2 78 99 79 98 62 98 45 58 69 40 36 88 15 60 57 72 55 18 61 14 4 85 51 3 Regions Visited 24 Branch Regions 9 Pre-discovered Areas 11 | . 1 1 . 2 . . . . 2 . 1 . . . . 1 1 1 . . . . 1 . Known Exits Taken 7 | . . . 1 . . 1 1 . 1 . . . 1 . . . . 1 . . . . 1 . Unknown Exits Taken 10 | 1 1 1 . 1 1 . . . . . . . . 1 1 1 1 . . 1 . . . . Scrap Searched 5 | . . 1 . 2 . 1 . . . . . . . 1 . . . . . . . . . . Spaces Dug 192 | . . . 8 5 . . . . 11 . 31 . 22 . 4 . 1 27 6 21 2 . 54 . Terrain Destroyed 618 | . 23 . 28 12 . . 35 52 42 6 98 . 22 16 6 . 11 41 18 72 3 . 133 . Melee 173 | . . . . . . . . . 11 . 31 . 22 . 4 . 1 27 . 21 2 . 54 . Projectile 62 | . . . . . . . 8 . 21 . 10 . . 3 2 . 2 3 2 2 1 . 8 . AOE 383 | . 23 . 28 12 . . 27 52 10 6 57 . . 13 . . 8 11 16 49 . . 71 . Actions | -11 -10 -10 -9 -9 -9 -8 -8 -8 -8 -8 -7 -7 -7 -7 -7 -7 -6 -6 -6 -6 -5 -5 -5 -5 --------- Run | Scr Mat Min Mat Min Exi Min Mat Gar Mat Gar Fac Was Fac Low Low Dat Pro Fac Gar Fac Fac Was Fac Upp Total 15298 | 7 665 707 1048 654 235 798 576 645 1007 524 1284 314 518 332 633 91 479 763 642 806 142 377 2046 5 Wait 1357 | . 66 47 56 54 . 12 59 21 122 73 56 4 28 3 48 5 60 47 48 177 19 18 334 . Move 11900 | 3 512 646 862 540 235 744 402 521 739 389 994 287 443 308 510 86 401 563 448 501 111 258 1397 . Hop . | . . . . . . . . . . . . . . . . . . . . . . . . . Pick Up 202 | . 23 . 28 2 . 2 19 8 15 3 20 4 5 1 8 . 2 11 17 8 . 4 22 . Fast Attach 79 | . 5 . 7 . . . 6 . 6 . 6 2 . . 1 . . 6 13 4 1 3 19 . Attach 89 | . 1 . 6 1 . 2 6 3 5 2 16 1 . 1 9 . . 3 7 6 2 1 16 1 Detach 30 | . 2 . . . . . 1 . 2 . 6 2 . . 2 . . 1 4 3 1 1 5 . Swap 299 | 2 6 1 13 11 . 2 10 15 22 5 43 3 9 8 19 . 6 23 19 24 5 4 49 . Drop 169 | 2 14 . 17 5 . 1 16 6 15 1 17 8 5 1 5 . . 16 15 7 . 9 9 . Fire 693 | . 33 12 54 14 . 23 57 38 59 43 51 2 . 10 27 . 9 37 57 31 1 6 125 4 Melee 349 | . . . . 23 . 1 . 1 17 . 63 1 25 . 4 . 1 29 7 43 2 73 59 . Ram 6 | . 1 1 1 . . . . . . . . . . . . . . 3 . . . . . . Kick . | . . . . . . . . . . . . . . . . . . . . . . . . . Crush 40 | . 2 . 4 4 . 11 . . 5 . 7 . . . . . . . . 2 . . 5 . Escape Stasis 78 | . . . . . . . . 32 . 8 . . 3 . . . . 24 7 . . . 4 . Rewire 5 | . . . . . . . . . . . 5 . . . . . . . . . . . . . Trap . | . . . . . . . . . . . . . . . . . . . . . . . . . Miscellaneous 2 | . . . . . . . . . . . . . . . . . . . . . . . 2 . Route ------- -11/Scrapyard -10/Materials (discovered 4 exits: *Mat x2 / [*Min x2]) -10/Mines (discovered 2 exits: *Mat x2) -9/Materials (discovered 4 exits: *Mat x2 / *Min x2) -9/Mines (discovered 3 exits: *Mat x2 / [*Exi]) -9/Exiles -8/Mines (discovered 2 exits: *Mat x2) -8/Materials (discovered 3 exits: *Fac x2 / Gar) -8/Garrison -8/Materials (discovered 4 exits: *Fac x3 / Gar) -8/Garrison -7/Factory (discovered 6 exits: *Fac x2 / *Sto x2 / *Low x2) -7/Waste -7/Factory (discovered 5 exits: *Fac / Sto / *Low x2 / Gar) -7/Lower Caves -7/Lower Caves -7/Data Miner -6/Proximity Caves -6/Factory (discovered 3 exits: Low x2 / Gar) -6/Garrison (discovered 2 exits: *Fac x2) -6/Factory (discovered 2 exits: *Fac / *Low) -5/Factory -5/Waste -5/Factory (discovered 3 exits: *Fac x2 / *Upp) -5/Upper Caves History --------- Turn | Location | Event 1 | -11/Scrapyard | Discovered new exit (range 1) 10 | -11/Scrapyard | Entered Materials 76 | -10/Materials | Discovered new exit (range 15) 323 | -10/Materials | Build established: Mutant 327 | -10/Materials | Discovered new exit (range 9) 494 | -10/Materials | Crushed by falling debris 532 | -10/Materials | Discovered new exit (range 16) 689 | -10/Materials | Repaired Lgt. Treads 716 | -10/Materials | Repaired Lgt. Treads 782 | -10/Materials | Discovered new exit (range 8) 922 | -10/Materials | Entered Mines 944 | -10/Mines | Discovered new exit (range 10) 1071 | -10/Mines | Met a Derelict bent on vengeance 1377 | -10/Mines | Build established: Hauler-Mutant 1411 | -10/Mines | Discovered new exit (range 4) 1595 | -10/Mines | Learned location of 1 exit from Materials 1768 | -10/Mines | Entered Materials 1768 | -9/Materials | Evolved 2 slots: Utility x2 1769 | -9/Materials | Identified exit to Materials 1924 | -9/Materials | Discovered exit to Materials (range 12) 2689 | -9/Materials | Repaired Hcp. Storage Unit 2795 | -9/Materials | Discovered new exit (range 7) 3498 | -9/Materials | Identified exit to Mines 3572 | -9/Materials | Entered Mines 3733 | -9/Mines | Learned location of Storage (-7) 4013 | -9/Mines | Deemed a non-threat by the Exiles lab entrance 4048 | -9/Mines | Destroyed YI-UF0 4157 | -9/Mines | Discovered exit to Materials (range 9) 4209 | -9/Mines | Discovered exit to Materials (range 8) 4819 | -9/Mines | Discovered new exit (range 5) 4827 | -9/Mines | Entered Exiles 4875 | -9/Exiles | Met 8R-AWN 4907 | -9/Exiles | Met EX-HEX 5019 | -9/Exiles | Met EX-DEC 5165 | -9/Exiles | Met EX-BIN 5275 | -9/Exiles | Discovered new exit (range 14) 5297 | -9/Exiles | Entered Mines 5808 | -8/Mines | Discovered exit to Materials (range 9) 5887 | -8/Mines | Discovered exit to Materials (range 4) 6898 | -8/Mines | Entered Materials 6898 | -8/Materials | Evolved 2 slots: Utility x2 7105 | -8/Materials | Repaired Hrd. Medium Armor Plating 7369 | -8/Materials | Discovered new exit (range 3) 7752 | -8/Materials | Discovered new exit (range 13) 7900 | -8/Materials | Identified exit to Garrison 7900 | -8/Materials | Entered Garrison 8078 | -8/Garrison | Triggered checkpoint 8087 | -8/Garrison | Triggered checkpoint 8251 | -8/Garrison | Discovered new exit (range 10) 8271 | -8/Garrison | Installed Relay Interface Framework 8351 | -8/Garrison | Triggered checkpoint 8384 | -8/Garrison | Garrison Relay disabled 8510 | -8/Garrison | Spotted B-75 Beast 8511 | -8/Garrison | Spotted B-75 Beast 8580 | -8/Garrison | Triggered checkpoint 8606 | -8/Garrison | Garrison Relay disabled 8672 | -8/Garrison | Triggered checkpoint 8692 | -8/Garrison | Garrison Relay disabled 8805 | -8/Garrison | Entered Materials 8980 | -8/Materials | Build established: Bothacker-Mutant 9338 | -8/Materials | Core integrity fell below 50% 9512 | -8/Materials | Build established: Hauler-Mutant 9624 | -8/Materials | Repaired Adv. Terrain Scanner 9856 | -8/Materials | Discovered new exit (range 9) 10044 | -8/Materials | Discovered new exit (range 16) 10335 | -8/Materials | Discovered new exit (range 14) 10400 | -8/Materials | Repaired Hrd. Medium Armor Plating 10653 | -8/Materials | Identified exit to Garrison 10653 | -8/Materials | Entered Garrison 10736 | -8/Garrison | Triggered checkpoint 10987 | -8/Garrison | Discovered new exit (range 10) 11017 | -8/Garrison | Expanded RIF knowledge: Alert ID Control 11242 | -8/Garrison | Triggered checkpoint 11314 | -8/Garrison | Garrison Relay disabled 11590 | -8/Garrison | Entered Factory 11590 | -7/Factory | Evolved 2 slots: Utility x2 11613 | -7/Factory | Build established: Bothacker-Mutant 11695 | -7/Factory | Discovered new exit (range 10) 11730 | -7/Factory | Garrison activated, responded to threat 12477 | -7/Factory | Discovered new exit (range 8) 12663 | -7/Factory | Destroyed 8 combat bots 12851 | -7/Factory | Discovered new exit (range 17) 13333 | -7/Factory | Garrison activated, responded to threat 13438 | -7/Factory | Discovered new exit (range 16) 13624 | -7/Factory | Discovered new exit (range 4) 13845 | -7/Factory | Discovered new exit (range 11) 13875 | -7/Factory | Build established: Hauler-Mutant 14089 | -7/Factory | Sucked down chute 14089 | -7/Factory | Entered Waste 14090 | -7/Waste | Met a frightened Derelict 14094 | -7/Waste | Found Launcher Loader 14106 | -7/Waste | Spotted C-40 Crusher 14119 | -7/Waste | Warlord forces began an assault 14131 | -7/Waste | Spotted C-40 Crusher 14136 | -7/Waste | Spotted C-40 Crusher 14139 | -7/Waste | Allies destroyed C-40 Crusher 14141 | -7/Waste | Spotted C-40 Crusher 14153 | -7/Waste | Spotted C-40 Crusher 14155 | -7/Waste | Allies destroyed C-40 Crusher 14159 | -7/Waste | Allies destroyed C-40 Crusher 14165 | -7/Waste | Allies destroyed C-40 Crusher 14169 | -7/Waste | Spotted C-40 Crusher 14174 | -7/Waste | Allies destroyed C-40 Crusher 14179 | -7/Waste | Found Damper Plating 14204 | -7/Waste | Allies destroyed C-40 Crusher 14296 | -7/Waste | Discovered new exit (range 24) 14646 | -7/Waste | Found Damper Plating 14706 | -7/Waste | Entered Factory 14706 | -7/Factory | Accompanied by 13 allies 15182 | -7/Factory | Fabricated L-31 Rogue? 15215 | -7/Factory | Discovered new exit (range 17) 15296 | -7/Factory | Garrison activated, responded to threat 15363 | -7/Factory | Identified exit to Garrison 15587 | -7/Factory | Identified exit to Storage 15587 | -7/Factory | Identified exit to Lower Caves 15728 | -7/Factory | Entered Lower Caves 15728 | -7/Lower Caves | Accompanied by 3 allies 15824 | -7/Lower Caves | P-60 Hacker assimilated allied Rogue 4b 16226 | -7/Lower Caves | Discovered new exit (range 11) 16405 | -7/Lower Caves | Entered another Lower Caves area 16405 | -7/Lower Caves | Accompanied by 1 ally 16766 | -7/Lower Caves | Spotted B-75 Beast 16818 | -7/Lower Caves | Destroyed B-75 Beast 17476 | -7/Lower Caves | Discovered new exit (range 19) 17507 | -7/Lower Caves | Entered Data Miner 17507 | -7/Data Miner | Accompanied by 1 ally 17507 | -7/Data Miner | Discovered new exit (range 6) 17534 | -7/Data Miner | Met Data Miner 17568 | -7/Data Miner | Learned location of Section 7 (-2) 17568 | -7/Data Miner | Acquired the access code to Warlord's prototype stash 17591 | -7/Data Miner | Received God Mode back door access code from Data Miner 17633 | -7/Data Miner | Entered Proximity Caves 17633 | -6/Proximity Caves | Accompanied by 1 ally 17752 | -6/Proximity Caves | Escorted by Enhanced Grunt 17752 | -6/Proximity Caves | Core integrity fell below 50% 18091 | -6/Proximity Caves | Learned location of Zion (-6) 18126 | -6/Proximity Caves | Attracted the attention of an 0b10 checkpoint 18266 | -6/Proximity Caves | Discovered new exit (range 15) 18295 | -6/Proximity Caves | Entered Factory 18295 | -6/Factory | Accompanied by 1 ally 18295 | -6/Factory | Evolved 2 slots: Utility x2 19320 | -6/Factory | Found Hvy. Reactive Plating 19323 | -6/Factory | Found Hvy. Reactive Plating 19387 | -6/Factory | Identified exit to Lower Caves 19454 | -6/Factory | Identified exit to Garrison 19454 | -6/Factory | Entered Garrison 19645 | -6/Garrison | Spotted B-75 Beast 19665 | -6/Garrison | Destroyed 7 combat bots 19665 | -6/Garrison | Lost 5 parts (1n3u1w) 19696 | -6/Garrison | Destroyed B-75 Beast 19697 | -6/Garrison | Core integrity fell below 50% 19702 | -6/Garrison | Crushed by falling debris 19733 | -6/Garrison | Lost 3 parts (2u1w) 19956 | -6/Garrison | Triggered checkpoint 20072 | -6/Garrison | Garrison Relay disabled 20124 | -6/Garrison | Spotted B-75 Beast 20212 | -6/Garrison | Triggered checkpoint 20310 | -6/Garrison | Triggered checkpoint 20420 | -6/Garrison | Discovered new exit (range 14) 20625 | -6/Garrison | Discovered new exit (range 11) 20662 | -6/Garrison | Expanded RIF knowledge: Program Shield 20670 | -6/Garrison | Entered Factory 21017 | -6/Factory | Discovered new exit (range 12) 21197 | -6/Factory | Lost 3 parts (1n2u) 21420 | -6/Factory | Discovered exit to Lower Caves (range 15) 22058 | -6/Factory | Fabricated Biometal Medium Treads (x2) 22137 | -6/Factory | Entered another Factory area 22137 | -5/Factory | Evolved 2 slots: Power x1, Propulsion x1 22297 | -5/Factory | Discovered new exit (range 23) 22366 | -5/Factory | Sucked down chute 22366 | -5/Factory | Entered Waste 22389 | -5/Waste | Spotted C-40 Crusher 22452 | -5/Waste | Destroyed C-40 Crusher 22498 | -5/Waste | Spotted C-40 Crusher 22514 | -5/Waste | Spotted C-40 Crusher 22534 | -5/Waste | Spotted C-40 Crusher 22626 | -5/Waste | Spotted C-40 Crusher 22661 | -5/Waste | Destroyed C-40 Crusher 22666 | -5/Waste | Found Damper Plating 22753 | -5/Waste | Spotted C-40 Crusher 22837 | -5/Waste | Destroyed C-40 Crusher 22879 | -5/Waste | Found Unknown Launcher 22879 | -5/Waste | Identified Gamma Bomb Array 22932 | -5/Waste | Destroyed C-40 Crusher 22981 | -5/Waste | Discovered new exit (range 11) 23042 | -5/Waste | Entered Factory 23530 | -5/Factory | Discovered new exit (range 24) 23627 | -5/Factory | Repaired Hcp. Storage Unit 23755 | -5/Factory | Discovered new exit (range 16) 23910 | -5/Factory | Identified exit to Factory 24881 | -5/Factory | Discovered exit to Factory (range 5) 25007 | -5/Factory | Build established: Hauler-Assassin 25352 | -5/Factory | Lost 10 parts (2p3n2u3w) 25353 | -5/Factory | Destroyed 9 combat bots 25521 | -5/Factory | Build established: Hauler-Mutant 25576 | -5/Factory | Destroyed 7 combat bots 25718 | -5/Factory | Lost 3 parts (1p1u1w) 25831 | -5/Factory | Lost 3 parts (1p2u) 25915 | -5/Factory | Fabricated Exp. Sensor Array (x1) 26042 | -5/Factory | First assault squad dispatched 26068 | -5/Factory | Incoming assault squad redirected 26099 | -5/Factory | Identified exit to Upper Caves 26372 | -5/Factory | Incoming assault squad redirected 26384 | -5/Factory | Garrison activated, responded to threat 26386 | -5/Factory | Incoming assault squad redirected 26412 | -5/Factory | Core integrity fell below 50% 26451 | -5/Factory | Entered Upper Caves 26460 | -5/Upper Caves | Self-destructed Last Messages --------------- 26426_ Slug penetrates Fabricator. 26426_ Acquired 90 matter. 26426_ Hvy. Shock Bomb Launcher destroyed. 26430_ Acquired Rnf. Fission Core. 26430_ Penetrated by Slug. 26430_ G-67 Veteran misfires. 26432_ System corrupted: Energy discharge (-57). 26437_ Penetrated by Slug. 26437_ Slug penetrates Wall. 26437_ Imp. Signal Interpreter destroyed. 26440_ Slug penetrates Wall. 26442_ U-05 Engineer lays Concrete. 26444_ Slug penetrates Wall. 26445_ U-05 Engineer lays Concrete. 26445_ Slammed into K-01 Serf. 26447_ System corrupted: Heat flow error (+116). LOCATION=UPPER CAVES GOAL=ESCAPE 26453_ Fusion Compressor destroyed. 26456_ Imp. Treads destroyed. Map ----- +----------------------------------------------------+ | ????????????????????????????????????????????? | | ????????????????????????????????????????????? | | ????????????????????????????????????????????? | | ????????????????????????????????????????????? | | ????????????????????????????????????????????? | | ????????????????????????????????????????????? | | ????????????????????????????????????????????? | | ????????????????????????????????????????????? | | ????????????????????????????????????????????? | | ????????????????????????????????????????????? | | ????????????????????????????????????????????? | | ????????????????????????????????????????????? | | ????????????????????????????????????????????? | | ????????????????????????????????????????????? | | ????????????????????????????????????????????? | | ????????????????????????????????????????????? | | ?????????????????????###????????????????????? | | ????????????????????## ###?????????????????? | | ????????????????????? #?????????????????? | | ????????????????????? ?????????????????? | | ?????????????????????? #?????????????????? | | ??????????????????????# #?????????????????? | | ??????????? ???????# ##????????????????? | | ?????????? #### #????????????????? | | ?????????? #????????????????? | | ?????????? l@ #????????????????? | | ?????????? g g #???????????????? | | ?????????? #???????????????? | | ??????????? ### #???????????????? | | ??????????? ??? #???????????????? | | ???????????? ???? ???????????????? | | ???????????? ## #????? #??????????????? | | ????????????# ??# ?????? ###??????????????? | | ???????????????? ??????? #????????????????? | | ???????????????###?????????#????????????????? | | ????????????????????????????????????????????? | | ????????????????????????????????????????????? | | ????????????????????????????????????????????? | | ????????????????????????????????????????????? | | ????????????????????????????????????????????? | | ????????????????????????????????????????????? | | ????????????????????????????????????????????? | | ????????????????????????????????????????????? | | ????????????????????????????????????????????? | | ????????????????????????????????????????????? | | ????????????????????????????????????????????? | | ????????????????????????????????????????????? | | ????????????????????????????????????????????? | | ????????????????????????????????????????????? | | ????????????????????????????????????????????? | +----------------------------------------------------+ Best States ------------- Heat Dissipation 91 Energy Generation 37 Energy Capacity 670 Matter Stores 300 Matter Capacity 300 Sight Range 16 Robot Scan Range 16 Terrain Scan Range 24 Terrain Scan Density 110 Armor Coverage 1425 Resistance: KI 40 Resistance: TH 30 Core Shielding 30 Utility Shielding 66 Evasion (%) 40 Recoil Reduction 3 Defensive Hacking 14 Item Schematics ----------------- Shock Bomb Launcher | -9/Materials | Scanalyzed Combat Drone Bay | -7/Data Miner | Free Lgt. Regenerative Plating | -7/Data Miner | Free Exp. Flexi-carbon Leg | -7/Data Miner | Free Triangulator | -7/Data Miner | Free Exp. Sensor Array | -7/Data Miner | Free Exp. Targeting Computer | -7/Data Miner | Free Exp. ECM Suite | -7/Data Miner | Free Cloaking Device | -7/Data Miner | Free Kinetic Spear | -7/Data Miner | Free Robot Schematics ------------------ S-27 Virus | -7/Data Miner | Free G-50 Soldier | -7/Data Miner | Free I-36 Angel | -7/Data Miner | Free Fabricated ------------ L-31 Rogue | x3 | -7/Factory | Preloaded Biometal Medium Treads | x2 | -6/Factory | Preloaded Exp. Sensor Array | x1 | -5/Factory Alien Tech Used ----------------- None Achievements -------------- None Challenges ------------ None Game ------ Seed StorageSwordBeam Manual? 0 Play Time 03:22:17 Cumulative 162.6 hours Start 2019.11.02 @ 18:49:39 End 2019.11.03 @ 16:17:10 Sessions 5 Manual Loads 0 Difficulty Rogue Special Mode None Game No. 166 Rogue 166 Adventurer 0 Explorer 0 Win Type - Total 2 Types 1/0/0/1/0/0/0 Lore% 63 Gallery% 79 Achievement% 62 Wizard Run 0 Options --------- ASCII 0 Keyboard 1 Movement Numpad Keybinds 0 Fullscreen 2 Font 18/SmallcapsGlow Map View 76x50 Tactical HUD 1 Map Filters NONE Filters NONE Steam 1 RUN: 6c29a59f-0ae4-488a-8b82-1e904bc77b3e